[Event "January 9 Early 2024"]
[Site "https://www.chess.com"]
[Date "2024.01.11"]
[Round "9"]
[White "Terziev, Dimo"]
[Black "Recuero Guerra, Javier"]
[Result "0-1"]
[Board "187"]
[TimeControl "180+1"]
[WhiteFideId "2925397"]
[BlackFideId "2254085"]
[WhiteElo "2155"]
[BlackElo "2297"]
[WhiteTeam "BUL"]
[BlackTeam "ESP"]
[WhiteClock "0:00:02"]
[BlackClock "0:00:03"]

1. e4 {[%clk 0:03:00]}  c5 {[%clk 0:02:58]} 2. Nf3 {[%clk 0:02:58]}  e6 {[%clk 0:02:57]} 3. d4 {[%clk 0:02:58]}  cxd4 {[%clk 0:02:58]} 4. Qxd4 {[%clk 0:02:58]}  Nc6 {[%clk 0:02:58]} 5. Qe3 {[%clk 0:02:57]}  Nf6 {[%clk 0:02:47]} 6. Be2 {[%clk 0:02:56]}  d5 {[%clk 0:02:43]} 7. exd5 {[%clk 0:02:54]}  Nxd5 {[%clk 0:02:42]} 8. Qb3 {[%clk 0:02:45]}  Be7 {[%clk 0:02:38]} 9. O-O {[%clk 0:02:44]}  O-O {[%clk 0:02:37]} 10. Rd1 {[%clk 0:02:41]}  Qb6 {[%clk 0:02:35]} 11. Qxb6 {[%clk 0:02:29]}  Nxb6 {[%clk 0:02:36]} 12. Be3 {[%clk 0:02:27]}  Nd5 {[%clk 0:02:32]} 13. Bd2 {[%clk 0:02:21]}  Bf6 {[%clk 0:02:30]} 14. c3 {[%clk 0:02:17]}  b6 {[%clk 0:02:23]} 15. Na3 {[%clk 0:02:16]}  Bb7 {[%clk 0:02:23]} 16. Nc2 {[%clk 0:02:15]}  Rfd8 {[%clk 0:02:19]} 17. Bf1 {[%clk 0:02:07]}  Rac8 {[%clk 0:02:17]} 18. Ne3 {[%clk 0:02:03]}  Nxe3 {[%clk 0:01:41]} 19. Bxe3 {[%clk 0:02:03]}  Ne7 {[%clk 0:01:39]} 20. Be2 {[%clk 0:01:44]}  Nf5 {[%clk 0:01:10]} 21. Bf4 {[%clk 0:01:38]}  h6 {[%clk 0:01:07]} 22. Ne1 {[%clk 0:01:09]}  Ne7 {[%clk 0:00:48]} 23. Bf3 {[%clk 0:01:06]}  Bxf3 {[%clk 0:00:47]} 24. Nxf3 {[%clk 0:01:07]}  Nd5 {[%clk 0:00:47]} 25. Be5 {[%clk 0:01:06]}  Bxe5 {[%clk 0:00:37]} 26. Nxe5 {[%clk 0:01:07]}  f6 {[%clk 0:00:32]} 27. Nf3 {[%clk 0:00:56]}  Kf7 {[%clk 0:00:31]} 28. Rd2 {[%clk 0:00:52]}  Nc7 {[%clk 0:00:16]} 29. Rad1 {[%clk 0:00:51]}  Rxd2 {[%clk 0:00:15]} 30. Rxd2 {[%clk 0:00:52]}  Ke7 {[%clk 0:00:03]} 31. Nd4 {[%clk 0:00:51]}  Ne8 {[%clk 0:00:02]} 32. g4 {[%clk 0:00:39]}  e5 {[%clk 0:00:01]} 33. Nf5+ {[%clk 0:00:39]}  Kf8 {[%clk 0:00:02]} 34. f3 {[%clk 0:00:37]}  Rc7 {[%clk 0:00:02]} 35. Kg2 {[%clk 0:00:35]}  Kf7 {[%clk 0:00:02]} 36. Nd6+ {[%clk 0:00:32]}  Nxd6 {[%clk 0:00:02]} 37. Rxd6 {[%clk 0:00:33]}  Ke7 {[%clk 0:00:03]} 38. Rd2 {[%clk 0:00:25]}  Rd7 {[%clk 0:00:04]} 39. Rxd7+ {[%clk 0:00:23]}  Kxd7 {[%clk 0:00:03]} 40. Kf2 {[%clk 0:00:23]}  Kd6 {[%clk 0:00:04]} 41. Ke3 {[%clk 0:00:23]}  Kd5 {[%clk 0:00:04]} 42. Kd3 {[%clk 0:00:23]}  b5 {[%clk 0:00:05]} 43. b3 {[%clk 0:00:22]}  a5 {[%clk 0:00:05]} 44. h4 {[%clk 0:00:17]}  g6 {[%clk 0:00:05]} 45. a3 {[%clk 0:00:03]}  f5 {[%clk 0:00:04]} 46. gxf5 {[%clk 0:00:03]}  gxf5 {[%clk 0:00:05]} 47. Ke3 {[%clk 0:00:04]}  Kc5 {[%clk 0:00:04]} 48. Kd3 {[%clk 0:00:03]}  Kd5 {[%clk 0:00:04]} 49. Ke3 {[%clk 0:00:03]}  a4 {[%clk 0:00:02]} 50. bxa4 {[%clk 0:00:02]}  bxa4 {[%clk 0:00:02]} 51. Kd3 {[%clk 0:00:02]}  Kc5 {[%clk 0:00:02]} 52. c4 {[%clk 0:00:01]}  Kc6 {[%clk 0:00:02]} 53. Kc3 {[%clk 0:00:01]}  Kc5 {[%clk 0:00:03]} 54. Kd3 {[%clk 0:00:02]}  h5 {[%clk 0:00:03]} 0-1

[Event "January 9 Early 2024"]
[Site "https://www.chess.com"]
[Date "2024.01.11"]
[Round "9"]
[White "Kazakouski, Valery"]
[Black "Martinez Alcantara, Jose Eduardo"]
[Result "1-0"]
[Board "188"]
[TimeControl "180+1"]
[WhiteFideId "13507443"]
[BlackFideId "3805662"]
[WhiteElo "2841"]
[BlackElo "3007"]
[WhiteTeam "LTU"]
[BlackTeam "PER"]
[WhiteClock "0:00:23"]
[BlackClock "0:00:01"]

1. Nf3 {[%clk 0:03:00]}  g6 {[%clk 0:02:57]} 2. d4 {[%clk 0:03:00]}  Bg7 {[%clk 0:02:58]} 3. g3 {[%clk 0:03:00]}  c6 {[%clk 0:02:57]} 4. Bg2 {[%clk 0:02:59]}  d6 {[%clk 0:02:58]} 5. c4 {[%clk 0:02:59]}  Nf6 {[%clk 0:02:59]} 6. O-O {[%clk 0:02:59]}  O-O {[%clk 0:03:00]} 7. Nc3 {[%clk 0:02:59]}  Bf5 {[%clk 0:03:00]} 8. Ng5 {[%clk 0:03:00]}  d5 {[%clk 0:02:57]} 9. Qb3 {[%clk 0:02:47]}  Qb6 {[%clk 0:02:46]} 10. Qxb6 {[%clk 0:02:46]}  axb6 {[%clk 0:02:47]} 11. cxd5 {[%clk 0:02:42]}  h6 {[%clk 0:02:47]} 12. e4 {[%clk 0:02:31]}  Bg4 {[%clk 0:02:40]} 13. Nf3 {[%clk 0:02:26]}  cxd5 {[%clk 0:02:37]} 14. e5 {[%clk 0:02:27]}  Nfd7 {[%clk 0:02:30]} 15. Nxd5 {[%clk 0:02:25]}  Nc6 {[%clk 0:02:30]} 16. Be3 {[%clk 0:02:25]}  Rfd8 {[%clk 0:02:22]} 17. h3 {[%clk 0:02:18]}  Be6 {[%clk 0:02:14]} 18. Nc7 {[%clk 0:02:18]}  Rac8 {[%clk 0:01:58]} 19. Nxe6 {[%clk 0:02:18]}  fxe6 {[%clk 0:01:59]} 20. Bd2 {[%clk 0:01:56]}  Ndb8 {[%clk 0:01:54]} 21. Bc3 {[%clk 0:01:46]}  Na6 {[%clk 0:01:54]} 22. a3 {[%clk 0:01:45]}  Nc7 {[%clk 0:01:54]} 23. Rfd1 {[%clk 0:01:33]}  Nd5 {[%clk 0:01:53]} 24. Be1 {[%clk 0:01:32]}  Rd7 {[%clk 0:01:52]} 25. Bf1 {[%clk 0:01:30]}  Nc7 {[%clk 0:01:50]} 26. Rac1 {[%clk 0:01:21]}  Rcd8 {[%clk 0:01:50]} 27. Kg2 {[%clk 0:01:21]}  g5 {[%clk 0:01:49]} 28. b4 {[%clk 0:01:16]}  Ra8 {[%clk 0:01:39]} 29. b5 {[%clk 0:01:15]}  Nd8 {[%clk 0:01:33]} 30. Rc3 {[%clk 0:00:52]}  Nd5 {[%clk 0:01:33]} 31. Rb3 {[%clk 0:00:52]}  Rc7 {[%clk 0:01:34]} 32. Nd2 {[%clk 0:00:50]}  Ra4 {[%clk 0:01:32]} 33. Nb1 {[%clk 0:00:43]}  Ra8 {[%clk 0:01:25]} 34. Nc3 {[%clk 0:00:43]}  Rac8 {[%clk 0:01:20]} 35. Rd3 {[%clk 0:00:39]}  Ra8 {[%clk 0:01:09]} 36. Be2 {[%clk 0:00:37]}  Rd7 {[%clk 0:01:06]} 37. Bf3 {[%clk 0:00:36]}  Nc7 {[%clk 0:01:06]} 38. Be4 {[%clk 0:00:34]}  Ra5 {[%clk 0:01:00]} 39. Bd2 {[%clk 0:00:31]}  Ra8 {[%clk 0:00:59]} 40. Be3 {[%clk 0:00:29]}  Ra5 {[%clk 0:00:58]} 41. f4 {[%clk 0:00:29]}  gxf4 {[%clk 0:00:59]} 42. gxf4 {[%clk 0:00:30]}  Ra8 {[%clk 0:00:50]} 43. Kf3 {[%clk 0:00:30]}  Rc8 {[%clk 0:00:46]} 44. d5 {[%clk 0:00:30]}  exd5 {[%clk 0:00:46]} 45. Nxd5 {[%clk 0:00:31]}  Nxd5 {[%clk 0:00:42]} 46. Rxd5 {[%clk 0:00:31]}  Rxd5 {[%clk 0:00:39]} 47. Bxd5+ {[%clk 0:00:32]}  e6 {[%clk 0:00:40]} 48. Be4 {[%clk 0:00:33]}  Bf8 {[%clk 0:00:32]} 49. Bxb6 {[%clk 0:00:32]}  Nf7 {[%clk 0:00:33]} 50. a4 {[%clk 0:00:30]}  Rc4 {[%clk 0:00:25]} 51. a5 {[%clk 0:00:30]}  h5 {[%clk 0:00:26]} 52. Bxb7 {[%clk 0:00:29]}  Bh6 {[%clk 0:00:26]} 53. Be3 {[%clk 0:00:29]}  Rb4 {[%clk 0:00:27]} 54. Rxb4 {[%clk 0:00:29]}  Nxe5+ {[%clk 0:00:28]} 55. fxe5 {[%clk 0:00:29]}  Kg7 {[%clk 0:00:28]} 56. Bxh6+ {[%clk 0:00:28]}  Kg6 {[%clk 0:00:29]} 57. Kf4 {[%clk 0:00:28]}  h4 {[%clk 0:00:30]} 58. Bg5 {[%clk 0:00:27]}  Kh5 {[%clk 0:00:31]} 59. Bf3+ {[%clk 0:00:27]}  Kg6 {[%clk 0:00:01]} 60. Rd4 {[%clk 0:00:25]}  Kh7 {[%clk 0:00:02]} 61. Be4+ {[%clk 0:00:24]}  Kg7 {[%clk 0:00:02]} 62. Rd7+ {[%clk 0:00:24]}  Kg8 {[%clk 0:00:03]} 63. Bg6 {[%clk 0:00:23]}  Kf8 {[%clk 0:00:04]} 64. Bf6 {[%clk 0:00:23]}  Kg8 {[%clk 0:00:01]} 65. Rd8# {[%clk 0:00:23]} 1-0

[Event "January 9 Early 2024"]
[Site "https://www.chess.com"]
[Date "2024.01.11"]
[Round "9"]
[White "Rakhmatullaev, Almas"]
[Black "Sarana, Alexey"]
[Result "0-1"]
[Board "193"]
[TimeControl "180+1"]
[WhiteFideId "14205793"]
[BlackFideId "24133795"]
[WhiteElo "2834"]
[BlackElo "3055"]
[WhiteTeam "UZB"]
[BlackTeam "SRB"]
[WhiteClock "0:00:01"]
[BlackClock "0:00:37"]

1. e4 {[%clk 0:03:00]}  c5 {[%clk 0:03:00]} 2. Nf3 {[%clk 0:03:00]}  d6 {[%clk 0:03:01]} 3. d4 {[%clk 0:03:00]}  cxd4 {[%clk 0:03:02]} 4. Qxd4 {[%clk 0:03:01]}  Nf6 {[%clk 0:03:01]} 5. Be2 {[%clk 0:03:01]}  g6 {[%clk 0:03:00]} 6. O-O {[%clk 0:02:58]}  Bg7 {[%clk 0:03:01]} 7. h3 {[%clk 0:02:57]}  O-O {[%clk 0:03:01]} 8. Rd1 {[%clk 0:02:56]}  Nc6 {[%clk 0:03:01]} 9. Qe3 {[%clk 0:02:57]}  Nd7 {[%clk 0:03:01]} 10. Nc3 {[%clk 0:02:56]}  Qb6 {[%clk 0:03:00]} 11. Qf4 {[%clk 0:02:34]}  Bxc3 {[%clk 0:02:52]} 12. bxc3 {[%clk 0:02:34]}  Qc5 {[%clk 0:02:53]} 13. c4 {[%clk 0:02:16]}  Nce5 {[%clk 0:02:53]} 14. Be3 {[%clk 0:02:10]}  Qc7 {[%clk 0:02:52]} 15. Nxe5 {[%clk 0:02:00]}  dxe5 {[%clk 0:02:35]} 16. Qh4 {[%clk 0:02:00]}  f6 {[%clk 0:02:34]} 17. Bh6 {[%clk 0:01:46]}  Rf7 {[%clk 0:02:32]} 18. Rd2 {[%clk 0:01:23]}  Nc5 {[%clk 0:02:29]} 19. Rad1 {[%clk 0:01:23]}  Be6 {[%clk 0:02:28]} 20. f3 {[%clk 0:01:13]}  b6 {[%clk 0:02:28]} 21. Qg3 {[%clk 0:01:01]}  Nb7 {[%clk 0:02:26]} 22. h4 {[%clk 0:00:59]}  Kh8 {[%clk 0:02:26]} 23. Be3 {[%clk 0:00:51]}  Rg8 {[%clk 0:02:19]} 24. f4 {[%clk 0:00:48]}  exf4 {[%clk 0:02:16]} 25. Bxf4 {[%clk 0:00:48]}  Qc6 {[%clk 0:02:15]} 26. Qe3 {[%clk 0:00:44]}  Bxc4 {[%clk 0:02:07]} 27. Bf3 {[%clk 0:00:25]}  e5 {[%clk 0:02:03]} 28. Bh6 {[%clk 0:00:25]}  Bxa2 {[%clk 0:01:53]} 29. Kh1 {[%clk 0:00:23]}  Be6 {[%clk 0:01:52]} 30. g4 {[%clk 0:00:19]}  Qc8 {[%clk 0:01:47]} 31. Rg1 {[%clk 0:00:15]}  Nc5 {[%clk 0:01:46]} 32. g5 {[%clk 0:00:15]}  Qc7 {[%clk 0:01:29]} 33. gxf6 {[%clk 0:00:12]}  Rxf6 {[%clk 0:01:30]} 34. Rg5 {[%clk 0:00:13]}  Rd8 {[%clk 0:01:24]} 35. Rxd8+ {[%clk 0:00:09]}  Qxd8 {[%clk 0:01:25]} 36. Rxe5 {[%clk 0:00:09]}  Qd6 {[%clk 0:01:23]} 37. Bf4 {[%clk 0:00:05]}  Nd7 {[%clk 0:01:15]} 38. Rf5 {[%clk 0:00:05]}  Qe7 {[%clk 0:01:12]} 39. Rxf6 {[%clk 0:00:06]}  Qxf6 {[%clk 0:01:13]} 40. Bg5 {[%clk 0:00:06]}  Qe5 {[%clk 0:01:07]} 41. Qd2 {[%clk 0:00:05]}  Kg7 {[%clk 0:01:05]} 42. Bh6+ {[%clk 0:00:05]}  Kf7 {[%clk 0:01:05]} 43. Bf4 {[%clk 0:00:05]}  Qf6 {[%clk 0:01:05]} 44. Kg2 {[%clk 0:00:03]}  Qxh4 {[%clk 0:01:03]} 45. Qd6 {[%clk 0:00:03]}  Qe7 {[%clk 0:01:01]} 46. Qd4 {[%clk 0:00:03]}  Qf6 {[%clk 0:00:59]} 47. e5 {[%clk 0:00:03]}  Qh4 {[%clk 0:00:57]} 48. Bd5 {[%clk 0:00:02]}  Qh3+ {[%clk 0:00:55]} 49. Kf2 {[%clk 0:00:03]}  Bxd5 {[%clk 0:00:51]} 50. Qxd5+ {[%clk 0:00:03]}  Qe6 {[%clk 0:00:51]} 51. Qb7 {[%clk 0:00:04]}  a5 {[%clk 0:00:48]} 52. Ke3 {[%clk 0:00:04]}  a4 {[%clk 0:00:43]} 53. c4 {[%clk 0:00:04]}  a3 {[%clk 0:00:43]} 54. Qa7 {[%clk 0:00:05]}  g5 {[%clk 0:00:41]} 55. Bg3 {[%clk 0:00:05]}  Qe7 {[%clk 0:00:36]} 56. Qc7 {[%clk 0:00:02]}  Qc5+ {[%clk 0:00:35]} 57. Qxc5 {[%clk 0:00:02]}  Nxc5 {[%clk 0:00:36]} 58. Be1 {[%clk 0:00:01]}  a2 {[%clk 0:00:36]} 59. Bc3 {[%clk 0:00:01]}  h5 {[%clk 0:00:37]} 60. Kd4 {[%clk 0:00:01]}  Ke6 {[%clk 0:00:37]} 0-1

[Event "January 9 Early 2024"]
[Site "https://www.chess.com"]
[Date "2024.01.11"]
[Round "9"]
[White "Alexanian, Nelli"]
[Black "Teillet, Benoit"]
[Result "1-0"]
[Board "194"]
[TimeControl "180+1"]
[WhiteFideId "4170539"]
[BlackFideId "616591"]
[WhiteElo "1998"]
[BlackElo "2233"]
[WhiteTeam "TUR"]
[BlackTeam "FRA"]
[WhiteClock "0:00:04"]
[BlackClock "0:00:20"]

1. d4 {[%clk 0:02:46]}  d6 {[%clk 0:02:58]} 2. e4 {[%clk 0:02:45]}  Nf6 {[%clk 0:02:58]} 3. Bd3 {[%clk 0:02:40]}  g6 {[%clk 0:02:58]} 4. Ne2 {[%clk 0:02:34]}  Bg7 {[%clk 0:02:58]} 5. Bg5 {[%clk 0:02:30]}  c5 {[%clk 0:02:54]} 6. d5 {[%clk 0:02:20]}  a6 {[%clk 0:02:50]} 7. f3 {[%clk 0:02:14]}  b5 {[%clk 0:02:48]} 8. c4 {[%clk 0:02:13]}  Bd7 {[%clk 0:02:44]} 9. Qd2 {[%clk 0:02:06]}  bxc4 {[%clk 0:02:38]} 10. Bxc4 {[%clk 0:02:04]}  Bb5 {[%clk 0:02:38]} 11. Na3 {[%clk 0:02:01]}  Qb6 {[%clk 0:02:29]} 12. Nc3 {[%clk 0:02:00]}  Bxc4 {[%clk 0:02:16]} 13. Nxc4 {[%clk 0:01:59]}  Qb4 {[%clk 0:02:16]} 14. Qe2 {[%clk 0:01:34]}  Nbd7 {[%clk 0:02:03]} 15. O-O {[%clk 0:01:31]}  O-O {[%clk 0:01:58]} 16. a3 {[%clk 0:01:27]}  Qb8 {[%clk 0:01:35]} 17. f4 {[%clk 0:01:19]}  h6 {[%clk 0:01:24]} 18. Bh4 {[%clk 0:01:18]}  Re8 {[%clk 0:01:10]} 19. e5 {[%clk 0:01:17]}  dxe5 {[%clk 0:01:05]} 20. fxe5 {[%clk 0:01:16]}  Nh7 {[%clk 0:01:04]} 21. Qf3 {[%clk 0:01:04]}  Nxe5 {[%clk 0:00:51]} 22. Nxe5 {[%clk 0:01:02]}  Qxe5 {[%clk 0:00:51]} 23. Qxf7+ {[%clk 0:01:01]}  Kh8 {[%clk 0:00:51]} 24. Rae1 {[%clk 0:00:56]}  Qd4+ {[%clk 0:00:46]} 25. Bf2 {[%clk 0:00:55]}  Qg4 {[%clk 0:00:39]} 26. Re4 {[%clk 0:00:48]}  Qg5 {[%clk 0:00:37]} 27. Be3 {[%clk 0:00:44]}  Qh5 {[%clk 0:00:29]} 28. Rxe7 {[%clk 0:00:36]}  Rxe7 {[%clk 0:00:28]} 29. Qxe7 {[%clk 0:00:35]}  Rf8 {[%clk 0:00:20]} 30. Rxf8+ {[%clk 0:00:33]}  Bxf8 {[%clk 0:00:20]} 31. Qe8 {[%clk 0:00:30]}  Qf5 {[%clk 0:00:20]} 32. Bxc5 {[%clk 0:00:27]}  Kg8 {[%clk 0:00:19]} 33. Bxf8 {[%clk 0:00:26]}  Nxf8 {[%clk 0:00:19]} 34. d6 {[%clk 0:00:23]}  Qc5+ {[%clk 0:00:17]} 35. Kf1 {[%clk 0:00:22]}  Qxd6 {[%clk 0:00:18]} 36. Qe4 {[%clk 0:00:21]}  Qf6+ {[%clk 0:00:18]} 37. Kg1 {[%clk 0:00:20]}  Qg5 {[%clk 0:00:16]} 38. h3 {[%clk 0:00:16]}  Qc1+ {[%clk 0:00:15]} 39. Kh2 {[%clk 0:00:16]}  Qxb2 {[%clk 0:00:15]} 40. Qd5+ {[%clk 0:00:15]}  Kg7 {[%clk 0:00:14]} 41. Ne4 {[%clk 0:00:15]}  Qb8+ {[%clk 0:00:10]} 42. Nd6 {[%clk 0:00:14]}  Qc7 {[%clk 0:00:09]} 43. Kg1 {[%clk 0:00:12]}  h5 {[%clk 0:00:09]} 44. Qe5+ {[%clk 0:00:10]}  Kh6 {[%clk 0:00:10]} 45. Nf5+ {[%clk 0:00:09]}  gxf5 {[%clk 0:00:10]} 46. Qxc7 {[%clk 0:00:08]}  Ng6 {[%clk 0:00:10]} 47. Qc6 {[%clk 0:00:08]}  Kg5 {[%clk 0:00:11]} 48. Qxa6 {[%clk 0:00:08]}  h4 {[%clk 0:00:12]} 49. Qe2 {[%clk 0:00:07]}  Nf4 {[%clk 0:00:13]} 50. Qf3 {[%clk 0:00:07]}  Ne2+ {[%clk 0:00:14]} 51. Qxe2 {[%clk 0:00:06]}  f4 {[%clk 0:00:15]} 52. Qf3 {[%clk 0:00:06]}  Kf5 {[%clk 0:00:16]} 53. Kf2 {[%clk 0:00:06]}  Kg5 {[%clk 0:00:17]} 54. a4 {[%clk 0:00:06]}  Kf5 {[%clk 0:00:18]} 55. a5 {[%clk 0:00:06]}  Ke5 {[%clk 0:00:19]} 56. a6 {[%clk 0:00:06]}  Kd6 {[%clk 0:00:19]} 57. a7 {[%clk 0:00:06]}  Kc7 {[%clk 0:00:20]} 58. a8=Q {[%clk 0:00:06]}  Kd7 {[%clk 0:00:21]} 59. Qa6 {[%clk 0:00:06]}  Kc7 {[%clk 0:00:21]} 60. Qfc6+ {[%clk 0:00:05]}  Kb8 {[%clk 0:00:20]} 61. Qcb7# {[%clk 0:00:04]} 1-0

[Event "January 9 Early 2024"]
[Site "https://www.chess.com"]
[Date "2024.01.11"]
[Round "9"]
[White "Perossa, Nicolas"]
[Black "Zhu, Jiner"]
[Result "1-0"]
[Board "195"]
[TimeControl "180+1"]
[WhiteFideId "2850520"]
[BlackFideId "8608059"]
[WhiteElo "2469"]
[BlackElo "2597"]
[WhiteTeam "ITA"]
[BlackTeam "CHN"]
[WhiteClock "0:00:04"]
[BlackClock "0:00:16"]

1. d4 {[%clk 0:03:00]}  Nf6 {[%clk 0:02:56]} 2. Nf3 {[%clk 0:02:58]}  g6 {[%clk 0:02:56]} 3. g3 {[%clk 0:02:57]}  Bg7 {[%clk 0:02:56]} 4. Bh3 {[%clk 0:02:55]}  O-O {[%clk 0:02:55]} 5. O-O {[%clk 0:02:54]}  d5 {[%clk 0:02:53]} 6. Bg2 {[%clk 0:02:54]}  c5 {[%clk 0:02:51]} 7. c3 {[%clk 0:02:51]}  Ne4 {[%clk 0:02:46]} 8. Nbd2 {[%clk 0:02:45]}  Nc6 {[%clk 0:02:45]} 9. e3 {[%clk 0:02:33]}  Nxd2 {[%clk 0:02:33]} 10. Bxd2 {[%clk 0:02:23]}  b6 {[%clk 0:02:33]} 11. Re1 {[%clk 0:02:19]}  Bf5 {[%clk 0:02:31]} 12. Rc1 {[%clk 0:02:11]}  Rc8 {[%clk 0:02:29]} 13. b3 {[%clk 0:02:06]}  e5 {[%clk 0:02:25]} 14. dxe5 {[%clk 0:02:03]}  Nxe5 {[%clk 0:02:26]} 15. Nxe5 {[%clk 0:02:00]}  Bxe5 {[%clk 0:02:26]} 16. e4 {[%clk 0:01:51]}  dxe4 {[%clk 0:02:24]} 17. Bxe4 {[%clk 0:01:51]}  Bxe4 {[%clk 0:02:25]} 18. Rxe4 {[%clk 0:01:52]}  Qd5 {[%clk 0:02:25]} 19. Qe2 {[%clk 0:01:40]}  Bf6 {[%clk 0:02:19]} 20. c4 {[%clk 0:01:32]}  Qd7 {[%clk 0:02:13]} 21. Bc3 {[%clk 0:01:30]}  Bxc3 {[%clk 0:01:49]} 22. Rxc3 {[%clk 0:01:31]}  Rfe8 {[%clk 0:01:48]} 23. Rce3 {[%clk 0:01:28]}  Rxe4 {[%clk 0:01:45]} 24. Rxe4 {[%clk 0:01:29]}  a5 {[%clk 0:01:45]} 25. Re7 {[%clk 0:01:23]}  Qc6 {[%clk 0:01:43]} 26. Qd3 {[%clk 0:01:00]}  Qf6 {[%clk 0:01:17]} 27. Qd7 {[%clk 0:00:48]}  Rf8 {[%clk 0:01:14]} 28. Kg2 {[%clk 0:00:45]}  Kg7 {[%clk 0:01:02]} 29. h4 {[%clk 0:00:27]}  h5 {[%clk 0:01:02]} 30. Qc7 {[%clk 0:00:17]}  Ra8 {[%clk 0:00:59]} 31. a4 {[%clk 0:00:14]}  Rf8 {[%clk 0:00:58]} 32. Re3 {[%clk 0:00:12]}  Rd8 {[%clk 0:00:57]} 33. Rf3 {[%clk 0:00:12]}  Qd4 {[%clk 0:00:43]} 34. Qxf7+ {[%clk 0:00:09]}  Kh6 {[%clk 0:00:43]} 35. Rf6 {[%clk 0:00:08]}  Qe4+ {[%clk 0:00:41]} 36. Kh2 {[%clk 0:00:07]}  Qg4 {[%clk 0:00:30]} 37. Rf4 {[%clk 0:00:06]}  Qd1 {[%clk 0:00:28]} 38. Qe7 {[%clk 0:00:05]}  Qd7 {[%clk 0:00:22]} 39. Qg5+ {[%clk 0:00:05]}  Kg7 {[%clk 0:00:21]} 40. Rf6 {[%clk 0:00:05]}  Qd3 {[%clk 0:00:20]} 41. Rxg6+ {[%clk 0:00:04]}  Qxg6 {[%clk 0:00:21]} 42. Qxd8 {[%clk 0:00:05]}  Qc2 {[%clk 0:00:20]} 43. Qc7+ {[%clk 0:00:05]}  Kg8 {[%clk 0:00:20]} 44. Qc8+ {[%clk 0:00:04]}  Kg7 {[%clk 0:00:20]} 45. Qd7+ {[%clk 0:00:03]}  Kg8 {[%clk 0:00:20]} 46. Qe6+ {[%clk 0:00:03]}  Kg7 {[%clk 0:00:21]} 47. Qe5+ {[%clk 0:00:04]}  Kg8 {[%clk 0:00:21]} 48. Qg5+ {[%clk 0:00:04]}  Kf8 {[%clk 0:00:21]} 49. Qf4+ {[%clk 0:00:04]}  Kg8 {[%clk 0:00:21]} 50. Qe3 {[%clk 0:00:05]}  Kg7 {[%clk 0:00:20]} 51. Kg2 {[%clk 0:00:05]}  Kg8 {[%clk 0:00:19]} 52. Kf3 {[%clk 0:00:06]}  Qd1+ {[%clk 0:00:19]} 53. Ke4 {[%clk 0:00:05]}  Qc2+ {[%clk 0:00:19]} 54. Kf4 {[%clk 0:00:04]}  Qg6 {[%clk 0:00:18]} 55. Qe4 {[%clk 0:00:02]}  Qf6+ {[%clk 0:00:18]} 56. Qf5 {[%clk 0:00:02]}  Qd4+ {[%clk 0:00:18]} 57. Kg5 {[%clk 0:00:02]}  Qc3 {[%clk 0:00:15]} 58. Qg6+ {[%clk 0:00:01]}  Kf8 {[%clk 0:00:15]} 59. Qf6+ {[%clk 0:00:02]}  Qxf6+ {[%clk 0:00:15]} 60. Kxf6 {[%clk 0:00:03]}  Ke8 {[%clk 0:00:16]} 61. Kg6 {[%clk 0:00:04]} 1-0

[Event "January 9 Early 2024"]
[Site "https://www.chess.com"]
[Date "2024.01.11"]
[Round "9"]
[White "Sasvatha A"]
[Black "Filipovic, Slobodan J"]
[Result "1-0"]
[Board "196"]
[TimeControl "180+1"]
[WhiteFideId "45010862"]
[BlackFideId "939633"]
[WhiteElo "2194"]
[BlackElo "2361"]
[WhiteTeam "IND"]
[BlackTeam "SRB"]
[WhiteClock "0:00:26"]
[BlackClock "0:00:12"]

1. e4 {[%clk 0:02:59]}  c5 {[%clk 0:02:59]} 2. Nf3 {[%clk 0:02:58]}  Nc6 {[%clk 0:02:59]} 3. d4 {[%clk 0:02:58]}  cxd4 {[%clk 0:02:59]} 4. Nxd4 {[%clk 0:02:59]}  e5 {[%clk 0:02:59]} 5. Nb3 {[%clk 0:02:59]}  Nf6 {[%clk 0:02:57]} 6. Bd3 {[%clk 0:02:55]}  d5 {[%clk 0:02:53]} 7. exd5 {[%clk 0:02:51]}  Nxd5 {[%clk 0:02:54]} 8. O-O {[%clk 0:02:50]}  Ndb4 {[%clk 0:02:54]} 9. Be4 {[%clk 0:02:49]}  Qxd1 {[%clk 0:02:50]} 10. Rxd1 {[%clk 0:02:50]}  Bg4 {[%clk 0:02:50]} 11. Re1 {[%clk 0:02:43]}  Be6 {[%clk 0:02:39]} 12. c3 {[%clk 0:02:42]}  Nd5 {[%clk 0:02:37]} 13. N1d2 {[%clk 0:02:39]}  f6 {[%clk 0:02:30]} 14. Nf3 {[%clk 0:02:36]}  Be7 {[%clk 0:02:26]} 15. h3 {[%clk 0:02:36]}  O-O {[%clk 0:02:08]} 16. Nfd2 {[%clk 0:02:11]}  Rfd8 {[%clk 0:02:01]} 17. a3 {[%clk 0:02:06]}  Rac8 {[%clk 0:01:55]} 18. c4 {[%clk 0:02:05]}  Nf4 {[%clk 0:01:42]} 19. Re3 {[%clk 0:01:53]}  a5 {[%clk 0:01:29]} 20. Bxc6 {[%clk 0:01:47]}  bxc6 {[%clk 0:01:20]} 21. Nxa5 {[%clk 0:01:47]}  Bc5 {[%clk 0:01:17]} 22. Rf3 {[%clk 0:01:19]}  Ne2+ {[%clk 0:01:15]} 23. Kf1 {[%clk 0:01:17]}  Nxc1 {[%clk 0:01:15]} 24. Rxc1 {[%clk 0:01:16]}  Rxd2 {[%clk 0:01:11]} 25. Nb3 {[%clk 0:01:16]}  Rxb2 {[%clk 0:01:00]} 26. Nxc5 {[%clk 0:01:16]}  Bf7 {[%clk 0:00:57]} 27. Rb3 {[%clk 0:01:14]}  Ra2 {[%clk 0:00:55]} 28. Nb7 {[%clk 0:01:12]}  Ra1 {[%clk 0:00:51]} 29. Rxa1 {[%clk 0:01:11]}  Bxc4+ {[%clk 0:00:50]} 30. Ke1 {[%clk 0:01:10]}  Bxb3 {[%clk 0:00:51]} 31. a4 {[%clk 0:01:08]}  c5 {[%clk 0:00:51]} 32. a5 {[%clk 0:01:08]}  c4 {[%clk 0:00:51]} 33. a6 {[%clk 0:01:08]}  c3 {[%clk 0:00:51]} 34. a7 {[%clk 0:01:08]}  Bd5 {[%clk 0:00:51]} 35. a8=Q {[%clk 0:01:05]}  Rxa8 {[%clk 0:00:44]} 36. Rxa8+ {[%clk 0:01:06]}  Kf7 {[%clk 0:00:45]} 37. Nd8+ {[%clk 0:01:04]}  Ke7 {[%clk 0:00:44]} 38. Rc8 {[%clk 0:01:03]}  Kd7 {[%clk 0:00:40]} 39. Rxc3 {[%clk 0:01:03]}  e4 {[%clk 0:00:38]} 40. Rc5 {[%clk 0:00:55]}  Kd6 {[%clk 0:00:33]} 41. Rxd5+ {[%clk 0:00:54]}  Kxd5 {[%clk 0:00:33]} 42. Nb7 {[%clk 0:00:52]}  Kc6 {[%clk 0:00:30]} 43. Na5+ {[%clk 0:00:52]}  Kb5 {[%clk 0:00:30]} 44. Nb3 {[%clk 0:00:52]}  Kc4 {[%clk 0:00:30]} 45. Nd2+ {[%clk 0:00:51]}  Kd3 {[%clk 0:00:31]} 46. Nf1 {[%clk 0:00:50]}  f5 {[%clk 0:00:30]} 47. Ng3 {[%clk 0:00:50]}  f4 {[%clk 0:00:29]} 48. Nh5 {[%clk 0:00:49]}  g5 {[%clk 0:00:27]} 49. Nf6 {[%clk 0:00:47]}  h6 {[%clk 0:00:25]} 50. Ng8 {[%clk 0:00:44]}  h5 {[%clk 0:00:24]} 51. Nf6 {[%clk 0:00:42]}  h4 {[%clk 0:00:21]} 52. Nh7 {[%clk 0:00:41]}  g4 {[%clk 0:00:21]} 53. hxg4 {[%clk 0:00:40]}  f3 {[%clk 0:00:21]} 54. Ng5 {[%clk 0:00:28]}  fxg2 {[%clk 0:00:19]} 55. Nh3 {[%clk 0:00:28]}  e3 {[%clk 0:00:18]} 56. g5 {[%clk 0:00:27]}  Ke4 {[%clk 0:00:16]} 57. fxe3 {[%clk 0:00:26]}  Kf5 {[%clk 0:00:12]} 58. Kf2 {[%clk 0:00:26]}  Kg4 {[%clk 0:00:12]} 59. Kxg2 {[%clk 0:00:26]}  Kf5 {[%clk 0:00:12]} 60. Kf3 {[%clk 0:00:26]} 1-0